Workbook

Sheet Generic
A6: Project Size & Subscription Assumptions
B8: Res | C8: Sml Com | D8: Lrg Com
A9: Energy Charge | B9: 48.5 | C9: =B9 -> 48.5 | D9: =C9 -> 48.5 | E9: $/MWH | G9: Discount Rate (Retail) | H9: 0.0666
A10: Subscription Charge | B10: 16.7164576 | C10: =+B10-3 -> 13.7164576 | D10: =+B10-6 -> 10.7164576 | E10: $/MWH | G10: Income Taxes | H10: 0.37951
A11: ="kWh / Subscription (month)" -> kWh / Subscription (month) | B11: =ROUND(AVERAGEIF($F$65:$AA$65,"<>0")*8760/12*D16,-2) -> 200
F12: 0 | G12: =F12+1 -> 1 | H12: 2 | I12: 3 | J12: 4 | K12: 5 | L12: 6 | M12: 7 | N12: 8 | O12: 9 | P12: 10 | Q12: 11 | R12: 12 | S12: 13 | T12: 14 | U12: 15 | V12: 16 | W12: 17 | X12: 18 | Y12: 19 | Z12: 20 | AA12: 21
A13: Calendar Year | E13: Total | F13: 2015 | G13: =F13+1 -> 2016 | H13: 2017 | I13: 2018 | J13: 2019 | K13: 2020 | L13: 2021 | M13: 2022 | N13: 2023 | O13: 2024 | P13: 2025 | Q13: 2026 | R13: 2027 | S13: 2028 | T13: 2029 | U13: 2030 | V13: 2031 | W13: 2032 | X13: 2033 | Y13: 2034 | Z13: 2035 | AA13: 2036
A15: Project Size (kW) | D15: 20000 | F15: 0 | G15: 0 | H15: =$D$15 -> 20000 | I15: 20000 | J15: 20000 | K15: 20000 | L15: 20000 | M15: 20000 | N15: 20000 | O15: 20000 | P15: 20000 | Q15: 20000 | R15: 20000 | S15: 20000 | T15: 20000 | U15: 20000 | V15: 20000 | W15: 20000 | X15: 20000 | Y15: 20000 | Z15: 20000 | AA15: 20000
A16: Subscription Size (kW per Subscription) | D16: 1 | F16: 0 | G16: 0 | H16: =$D$16 -> 1 | I16: 1 | J16: 1 | K16: 1 | L16: 1 | M16: 1 | N16: 1 | O16: 1 | P16: 1 | Q16: 1 | R16: 1 | S16: 1 | T16: 1 | U16: 1 | V16: 1 | W16: 1 | X16: 1 | Y16: 1 | Z16: 1 | AA16: 1
A17: Subscription Rate (%) | F17: 0 | G17: 0 | H17: 0.5 | I17: 0.75 | J17: 1 | K17: 1 | L17: =K17 -> 1 | M17: 1 | N17: 1 | O17: 1 | P17: 1 | Q17: 1 | R17: 1 | S17: 1 | T17: 1 | U17: 1 | V17: 1 | W17: 1 | X17: 1 | Y17: 1 | Z17: 1 | AA17: 1
A19: Subscription per Participant
A20: Residential | D20: 2 | F20: 0 | G20: 0 | H20: =$D$20 -> 2 | I20: 2 | J20: 2 | K20: 2 | L20: 2 | M20: 2 | N20: 2 | O20: 2 | P20: 2 | Q20: 2 | R20: 2 | S20: 2 | T20: 2 | U20: 2 | V20: 2 | W20: 2 | X20: 2 | Y20: 2 | Z20: 2 | AA20: 2
A21: Small Commercial | D21: 4 | F21: 0 | G21: 0 | H21: =$D$21 -> 4 | I21: =$D$21 -> 4 | J21: 4 | K21: 4 | L21: 4 | M21: 4 | N21: 4 | O21: 4 | P21: 4 | Q21: 4 | R21: 4 | S21: 4 | T21: 4 | U21: 4 | V21: 4 | W21: 4 | X21: 4 | Y21: 4 | Z21: 4 | AA21: 4
A23: Number of Customers Subscribed
A24: Residential | F24: =$D$15*$C29/$D20*F$17 -> 0 | G24: 0 | H24: 1500 | I24: 2250 | J24: 3000 | K24: 3000 | L24: 3000 | M24: 3000 | N24: 3000 | O24: 3000 | P24: 3000 | Q24: 3000 | R24: 3000 | S24: 3000 | T24: 3000 | U24: 3000 | V24: 3000 | W24: 3000 | X24: 3000 | Y24: 3000 | Z24: 3000 | AA24: 3000
A25: Small Commercial | F25: =$D$15*$C30/$D21*F$17 -> 0 | G25: 0 | H25: 750 | I25: 1125 | J25: 1500 | K25: 1500 | L25: 1500 | M25: 1500 | N25: 1500 | O25: 1500 | P25: 1500 | Q25: 1500 | R25: 1500 | S25: 1500 | T25: 1500 | U25: 1500 | V25: 1500 | W25: 1500 | X25: 1500 | Y25: 1500 | Z25: 1500 | AA25: 1500
A26: Total Customers (for billing fee) | F26: =SUM(F24:F25) -> 0 | G26: 0 | H26: 2250 | I26: 3375 | J26: =SUM(J24:J25) -> 4500 | K26: =SUM(K24:K25) -> 4500 | L26: 4500 | M26: 4500 | N26: 4500 | O26: 4500 | P26: 4500 | Q26: 4500 | R26: 4500 | S26: 4500 | T26: 4500 | U26: 4500 | V26: 4500 | W26: 4500 | X26: 4500 | Y26: 4500 | Z26: 4500 | AA26: 4500
A28: Energy Subscribed by Customer Class MWh
A29: Residential | C29: 0.3 | D29: =+NPV(Discount_Rate,F29:AD29)*(1+Discount_Rate)^(0.5) -> 133226.2722 | E29: =SUM(F29:AD29) -> 277200 | F29: =$D$15*Block*12*F$17/1000*$C29 -> 0 | G29: 0 | H29: 7200 | I29: 10800 | J29: 14400 | K29: 14400 | L29: 14400 | M29: 14400 | N29: 14400 | O29: 14400 | P29: =$D$15*Block*12*P$17/1000*$C29 -> 14400 | Q29: 14400 | R29: 14400 | S29: 14400 | T29: 14400 | U29: 14400 | V29: 14400 | W29: 14400 | X29: 14400 | Y29: 14400 | Z29: =$D$15*Block*12*Z$17/1000*$C29 -> 14400 | AA29: 14400
A30: Small Commercial | C30: 0.3 | D30: =+NPV(Discount_Rate,F30:AD30)*(1+Discount_Rate)^(0.5) -> 133226.2722 | E30: =SUM(F30:AD30) -> 277200 | F30: 0 | G30: 0 | H30: 7200 | I30: 10800 | J30: 14400 | K30: 14400 | L30: 14400 | M30: 14400 | N30: 14400 | O30: 14400 | P30: 14400 | Q30: 14400 | R30: 14400 | S30: 14400 | T30: 14400 | U30: 14400 | V30: 14400 | W30: 14400 | X30: 14400 | Y30: 14400 | Z30: 14400 | AA30: 14400
A31: Large Commercial | C31: =1-C29-C30 -> 0.4 | D31: =+NPV(Discount_Rate,F31:AD31)*(1+Discount_Rate)^(0.5) -> 177635.0297 | E31: =SUM(F31:AD31) -> 369600 | F31: 0 | G31: 0 | H31: 9600 | I31: 14400 | J31: 19200 | K31: 19200 | L31: 19200 | M31: 19200 | N31: 19200 | O31: 19200 | P31: 19200 | Q31: 19200 | R31: 19200 | S31: 19200 | T31: 19200 | U31: 19200 | V31: 19200 | W31: 19200 | X31: 19200 | Y31: 19200 | Z31: 19200 | AA31: 19200
A32: Total | C32: =SUM(C29:C31) -> 1 | D32: =+NPV(Discount_Rate,F32:AD32)*(1+Discount_Rate)^(0.5) -> 444087.5741 | E32: =SUM(F32:AD32) -> 924000 | F32: =SUM(F29:F31) -> 0 | G32: =SUM(G29:G31) -> 0 | H32: 24000 | I32: 36000 | J32: 48000 | K32: 48000 | L32: 48000 | M32: 48000 | N32: 48000 | O32: 48000 | P32: 48000 | Q32: 48000 | R32: 48000 | S32: 48000 | T32: 48000 | U32: 48000 | V32: 48000 | W32: 48000 | X32: 48000 | Y32: 48000 | Z32: 48000 | AA32: 48000
A36: General Revenue Increase (Decrease) | F36: (Thousands of Dollars)
A38: Subscription Charge by Customer Class $/MWh
A39: Contract Price - Residential | F39: 0 | G39: 0 | H39: =$B$9+$B$10 -> 65.2164576 | I39: 65.2164576 | J39: 65.2164576 | K39: 65.2164576 | L39: 65.2164576 | M39: 65.2164576 | N39: 65.2164576 | O39: 65.2164576 | P39: 65.2164576 | Q39: 65.2164576 | R39: 65.2164576 | S39: 65.2164576 | T39: 65.2164576 | U39: 65.2164576 | V39: 65.2164576 | W39: 65.2164576 | X39: 65.2164576 | Y39: 65.2164576 | Z39: 65.2164576 | AA39: 65.2164576
A40: Contract Price - Small Commercial | F40: 0 | G40: 0 | H40: =$C$9+$C$10 -> 62.2164576 | I40: 62.2164576 | J40: 62.2164576 | K40: 62.2164576 | L40: 62.2164576 | M40: 62.2164576 | N40: 62.2164576 | O40: 62.2164576 | P40: 62.2164576 | Q40: 62.2164576 | R40: 62.2164576 | S40: 62.2164576 | T40: 62.2164576 | U40: 62.2164576 | V40: 62.2164576 | W40: 62.2164576 | X40: 62.2164576 | Y40: 62.2164576 | Z40: 62.2164576 | AA40: 62.2164576
A41: Contract Price - Large Commercial | F41: 0 | G41: 0 | H41: =$D$9+$D$10 -> 59.2164576 | I41: 59.2164576 | J41: 59.2164576 | K41: 59.2164576 | L41: 59.2164576 | M41: 59.2164576 | N41: 59.2164576 | O41: 59.2164576 | P41: 59.2164576 | Q41: 59.2164576 | R41: 59.2164576 | S41: 59.2164576 | T41: 59.2164576 | U41: 59.2164576 | V41: 59.2164576 | W41: 59.2164576 | X41: 59.2164576 | Y41: 59.2164576 | Z41: 59.2164576 | AA41: 59.2164576
A43: Subscription Revenue
A44: Contract Price - Residential | E44: =SUM(F44:AD44) -> 18078.00205 | F44: =(F29*F39)/1000 -> 0 | G44: 0 | H44: 469.5584947 | I44: 704.3377421 | J44: 939.1169895 | K44: 939.1169895 | L44: 939.1169895 | M44: 939.1169895 | N44: 939.1169895 | O44: 939.1169895 | P44: 939.1169895 | Q44: 939.1169895 | R44: 939.1169895 | S44: 939.1169895 | T44: 939.1169895 | U44: 939.1169895 | V44: 939.1169895 | W44: 939.1169895 | X44: 939.1169895 | Y44: 939.1169895 | Z44: 939.1169895 | AA44: 939.1169895
A45: Contract Price - Small Commercial | E45: =SUM(F45:AD45) -> 17246.40205 | F45: 0 | G45: 0 | H45: 447.9584947 | I45: 671.9377421 | J45: 895.9169895 | K45: 895.9169895 | L45: 895.9169895 | M45: 895.9169895 | N45: 895.9169895 | O45: 895.9169895 | P45: 895.9169895 | Q45: 895.9169895 | R45: 895.9169895 | S45: 895.9169895 | T45: 895.9169895 | U45: 895.9169895 | V45: 895.9169895 | W45: 895.9169895 | X45: 895.9169895 | Y45: 895.9169895 | Z45: 895.9169895 | AA45: 895.9169895
A46: Contract Price - Large Commercial | E46: =SUM(F46:AD46) -> 21886.40273 | F46: 0 | G46: 0 | H46: 568.477993 | I46: 852.7169895 | J46: 1136.955986 | K46: 1136.955986 | L46: 1136.955986 | M46: 1136.955986 | N46: 1136.955986 | O46: 1136.955986 | P46: 1136.955986 | Q46: 1136.955986 | R46: 1136.955986 | S46: 1136.955986 | T46: 1136.955986 | U46: 1136.955986 | V46: 1136.955986 | W46: 1136.955986 | X46: 1136.955986 | Y46: 1136.955986 | Z46: 1136.955986 | AA46: 1136.955986
A47: ="Total "&A43 -> Total Subscription Revenue | D47: =+NPV(Discount_Rate,F47:AD47)*(1+Discount_Rate)^(0.5) -> 27496.32946 | E47: =SUM(F47:AD47) -> 57210.80682 | F47: =SUM(F44:F46) -> 0 | G47: =SUM(G44:G46) -> 0 | H47: 1485.994982 | I47: 2228.992474 | J47: 2971.989965 | K47: 2971.989965 | L47: 2971.989965 | M47: 2971.989965 | N47: 2971.989965 | O47: 2971.989965 | P47: 2971.989965 | Q47: 2971.989965 | R47: 2971.989965 | S47: 2971.989965 | T47: 2971.989965 | U47: 2971.989965 | V47: 2971.989965 | W47: 2971.989965 | X47: 2971.989965 | Y47: 2971.989965 | Z47: 2971.989965 | AA47: 2971.989965
A50: General Revenue Increase (Decrease) | D50: =+NPV(Discount_Rate,F50:AD50)*(1+Discount_Rate)^(0.5) -> 27496.32946 | E50: =SUM(F50:AD50) -> 57210.80682 | F50: =F47 -> 0 | G50: 0 | H50: 1485.994982 | I50: 2228.992474 | J50: 2971.989965 | K50: 2971.989965 | L50: 2971.989965 | M50: 2971.989965 | N50: 2971.989965 | O50: 2971.989965 | P50: 2971.989965 | Q50: 2971.989965 | R50: 2971.989965 | S50: 2971.989965 | T50: 2971.989965 | U50: 2971.989965 | V50: 2971.989965 | W50: 2971.989965 | X50: 2971.989965 | Y50: 2971.989965 | Z50: 2971.989965 | AA50: 2971.989965
A53: Expense Increase (Decrease) | F53: (Thousands of Dollars)
F54: =F12 -> 0 | G54: 1 | H54: 2 | I54: 3 | J54: 4 | K54: 5 | L54: 6 | M54: 7 | N54: 8 | O54: 9 | P54: 10 | Q54: 11 | R54: 12 | S54: 13 | T54: 14 | U54: 15 | V54: 16 | W54: 17 | X54: 18 | Y54: 19 | Z54: 20 | AA54: 21
A55: Calendar Year | E55: Total | F55: =F13 -> 2015 | G55: =F55+1 -> 2016 | H55: 2017 | I55: 2018 | J55: 2019 | K55: 2020 | L55: 2021 | M55: 2022 | N55: 2023 | O55: 2024 | P55: 2025 | Q55: 2026 | R55: 2027 | S55: 2028 | T55: 2029 | U55: 2030 | V55: 2031 | W55: 2032 | X55: 2033 | Y55: 2034 | Z55: 2035 | AA55: 2036
A57: Program Costs | B57: Start-up | C57: Year 1-3 | D57: On-Going
A58: Administration | B58: 10 | C58: 366 | D58: 112 | E58: =SUM(F58:AD58) -> 3763.540123 | F58: 10 | G58: =C58 -> 366 | H58: =$C58*H$93 -> 384.9840028 | I58: =$C58*I$93 -> 392.2986988 | J58: =$D58*J$93 -> 122.2085477 | K58: =$D58*K$93 -> 124.5305101 | L58: 127.0211203 | M58: 129.5615427 | N58: =$D58*N$93 -> 132.1527735 | O58: 134.9279818 | P58: 137.6265414 | Q58: 140.3790722 | R58: 143.1866537 | S58: 145.9072001 | T58: 148.6794369 | U58: 151.5043462 | V58: 154.3829288 | W58: =$D58*W$93 -> 157.3162044 | X58: 160.4625285 | Y58: 163.5113166 | Z58: 166.7815429 | AA58: 170.1171737
A59: Marketing | B59: 38 | C59: 350 | D59: 110 | E59: =SUM(F59:AD59) -> 3676.794711 | F59: =B59 -> 38 | G59: =C59 -> 350 | H59: 350 | I59: =$C59*I$93 -> 375.1490289 | J59: =$D59*J$93 -> 120.0262522 | K59: =$D59*K$93 -> 122.306751 | L59: =$D59*L$93 -> 124.752886 | M59: 127.2479437 | N59: 129.7929026 | O59: 132.5185535 | P59: 135.1689246 | Q59: 137.8723031 | R59: 140.6297491 | S59: 143.3017144 | T59: 146.024447 | U59: 148.7989114 | V59: 151.6260908 | W59: 154.5069865 | X59: 157.5971262 | Y59: 160.5914716 | Z59: 163.8033011 | AA59: 167.0793671
A60: Billing | B60: 900 | C60: 0 | D60: 0 | E60: =SUM(F60:AD60) -> 960 | F60: 60 | G60: =$B60 -> 900 | H60: =$C60*H$26*12/1000*H$93 -> 0 | I60: =$C60*I$26*12/1000*I$93 -> 0 | J60: =$C60*J$26*12/1000*J$93 -> 0 | K60: =$C60*K$26*12/1000*K$93 -> 0 | L60: =$D60*L$26*12/1000*L$93 -> 0 | M60: 0 | N60: 0 | O60: 0 | P60: 0 | Q60: 0 | R60: 0 | S60: 0 | T60: 0 | U60: 0 | V60: 0 | W60: 0 | X60: 0 | Y60: 0 | Z60: 0 | AA60: 0
A61: ="Total "&A57 -> Total Program Costs | D61: =+NPV(Discount_Rate,F61:AD61)*(1+Discount_Rate)^(0.5) -> 5097.207046 | E61: =SUM(F61:AD61) -> 8400.334834 | F61: =SUM(F58:F60) -> 108 | G61: 1616 | H61: 734.9840028 | I61: 767.4477277 | J61: 242.2347998 | K61: 246.837261 | L61: 251.7740062 | M61: 256.8094864 | N61: 261.9456761 | O61: 267.4465353 | P61: 272.795466 | Q61: 278.2513753 | R61: 283.8164028 | S61: 289.2089145 | T61: 294.7038839 | U61: 300.3032576 | V61: 306.0090195 | W61: 311.8231909 | X61: 318.0596547 | Y61: 324.1027882 | Z61: 330.5848439 | AA61: 337.1965408
A63: Cost of Goods Sold Increase (Decrease)
A64: Purchased Capacity (kW) | B64: 2017 | D64: =D15 -> 20000 | E64: =SUM(F64:AD64) -> 400000 | F64: 0 | G64: 0 | H64: =$D$64 -> 20000 | I64: =$D$64 -> 20000 | J64: 20000 | K64: 20000 | L64: 20000 | M64: 20000 | N64: 20000 | O64: 20000 | P64: 20000 | Q64: 20000 | R64: 20000 | S64: 20000 | T64: 20000 | U64: 20000 | V64: 20000 | W64: 20000 | X64: 20000 | Y64: 20000 | Z64: 20000 | AA64: 20000
A65: Capacity Factor (Annual) | B65: =B64 -> 2017 | H65: 0.306744 | I65: 0.304309 | J65: 0.301887 | K65: 0.299485 | L65: 0.297101 | M65: 0.294737 | N65: 0.292391 | O65: 0.290064 | P65: 0.287756 | Q65: 0.285466 | R65: 0.283147 | S65: 0.280848 | T65: 0.278567 | U65: 0.276305 | V65: 0.274061 | W65: 0.271835 | X65: 0.269627 | Y65: 0.267438 | Z65: 0.265266 | AA65: 0.263111
A66: Power Purchased (MWh) | B66: =B64 -> 2017 | D66: =+NPV(Discount_Rate,F66:AD66)*(1+Discount_Rate)^(0.5) -> 500634.32 | E66: =SUM(F66:AD66) -> 996913.404 | F66: =F64*F65*8760/1000 -> 0 | G66: 0 | H66: 53741.5488 | I66: 53314.9368 | J66: 52890.6024 | K66: 52469.772 | L66: 52052.0952 | M66: 51637.9224 | N66: 51226.9032 | O66: 50819.2128 | P66: 50414.8512 | Q66: 50013.6432 | R66: 49607.3544 | S66: 49204.5696 | T66: 48804.9384 | U66: 48408.636 | V66: 48015.4872 | W66: 47625.492 | X66: 47238.6504 | Y66: 46855.1376 | Z66: 46474.6032 | AA66: 46097.0472
A68: PPA Contract Price ($/MWh) | D68: =D$89 -> 43.04 | F68: 0 | G68: 0 | H68: =$B$9 -> 48.5 | I68: =$B$9 -> 48.5 | J68: 48.5 | K68: 48.5 | L68: 48.5 | M68: 48.5 | N68: 48.5 | O68: 48.5 | P68: 48.5 | Q68: 48.5 | R68: 48.5 | S68: 48.5 | T68: 48.5 | U68: 48.5 | V68: 48.5 | W68: 48.5 | X68: 48.5 | Y68: 48.5 | Z68: 48.5 | AA68: 48.5
A69: PPA Value | D69: =+NPV(Discount_Rate,F69:AD69)*(1+Discount_Rate)^(0.5) -> 24280.76452 | E69: =SUM(F69:AD69) -> 48350.30009 | F69: =F66*F$68/1000 -> 0 | G69: 0 | H69: 2606.465117 | I69: 2585.774435 | J69: 2565.194216 | K69: 2544.783942 | L69: 2524.526617 | M69: 2504.439236 | N69: 2484.504805 | O69: 2464.731821 | P69: 2445.120283 | Q69: 2425.661695 | R69: 2405.956688 | S69: 2386.421626 | T69: 2367.039512 | U69: 2347.818846 | V69: 2328.751129 | W69: 2309.836362 | X69: 2291.074544 | Y69: 2272.474174 | Z69: 2254.018255 | AA69: 2235.706789
A71: Program Surplus (Deficit) (MWh) | D71: =+NPV(Discount_Rate,F71:AD71)*(1+Discount_Rate)^(0.5) -> 56546.74586 | E71: =SUM(F71:AD71) -> 72913.404 | F71: =F66-F32 -> 0 | G71: 0 | H71: 29741.5488 | I71: 17314.9368 | J71: 4890.6024 | K71: 4469.772 | L71: 4052.0952 | M71: 3637.9224 | N71: 3226.9032 | O71: 2819.2128 | P71: 2414.8512 | Q71: 2013.6432 | R71: 1607.3544 | S71: 1204.5696 | T71: 804.9384 | U71: 408.636 | V71: 15.4872 | W71: -374.508 | X71: -761.3496 | Y71: -1144.8624 | Z71: -1525.3968 | AA71: -1902.9528
A72: Market Value of Solar Generation | D72: =D73/D71*1000 -> -33.27586904 | E72: =E73/E71*1000 -> -32.64139049 | F72: =F$89 -> 30.38 | G72: =G$89 -> 28.27 | H72: 29.69 | I72: 32.05 | J72: 33.8 | K72: 37.63 | L72: 40.53 | M72: 41.4 | N72: 42.74 | O72: 44.89 | P72: 47.53 | Q72: 49.85 | R72: 67.34 | S72: 69.45 | T72: 71.9 | U72: 74.36 | V72: 75.94 | W72: 77.47 | X72: 79.08 | Y72: 80.69 | Z72: 82.33 | AA72: 84.13
A73: Program Surplus (Deficit) Value | D73: =+NPV(Discount_Rate,F73:AD73)*(1+Discount_Rate)^(0.5) -> -1881.64211 | E73: =SUM(F73:AD73) -> -2379.994892 | F73: =-F71*F$72/1000 -> 0 | G73: 0 | H73: -883.0265839 | I73: -554.9437244 | J73: -165.3023611 | K73: -168.1975204 | L73: -164.2314185 | M73: -150.6099874 | N73: -137.9178428 | O73: -126.5544626 | P73: -114.7778775 | Q73: -100.3801135 | R73: -108.2392453 | S73: -83.65735872 | T73: -57.87507096 | U73: -30.38617296 | V73: -1.176097968 | W73: 29.01313476 | X73: 60.20752637 | Y73: 92.37894706 | Z73: 125.5859185 | AA73: 160.0954191
A74: Total Cost of Goods Sold | D74: =+NPV(Discount_Rate,F74:AD74)*(1+Discount_Rate)^(0.5) -> 22399.12241 | E74: =SUM(F74:AD74) -> 45970.3052 | F74: =F69+F73 -> 0 | G74: 0 | H74: 1723.438533 | I74: 2030.83071 | J74: 2399.891855 | K74: 2376.586422 | L74: 2360.295199 | M74: 2353.829249 | N74: 2346.586962 | O74: 2338.177358 | P74: 2330.342406 | Q74: 2325.281582 | R74: 2297.717443 | S74: 2302.764267 | T74: 2309.164441 | U74: 2317.432673 | V74: 2327.575031 | W74: 2338.849497 | X74: 2351.282071 | Y74: 2364.853121 | Z74: 2379.604174 | AA74: 2395.802208
A76: Expense Increase (Decrease) | D76: =+NPV(Discount_Rate,F76:AD76)*(1+Discount_Rate)^(0.5) -> 27496.32946 | E76: =SUM(F76:AD76) -> 54370.64004 | F76: =F74+F61 -> 108 | G76: 1616 | H76: =H74+H61 -> 2458.422536 | I76: =I74+I61 -> 2798.278438 | J76: 2642.126655 | K76: 2623.423683 | L76: 2612.069205 | M76: 2610.638735 | N76: 2608.532639 | O76: 2605.623894 | P76: 2603.137872 | Q76: 2603.532957 | R76: 2581.533846 | S76: 2591.973181 | T76: 2603.868325 | U76: 2617.735931 | V76: 2633.584051 | W76: 2650.672688 | X76: 2669.341726 | Y76: 2688.955909 | Z76: 2710.189018 | AA76: 2732.998749
A79: Revenue less Expense | F79: (Thousands of Dollars)
D80: NPV | E80: Total | F80: =F13 -> 2015 | G80: =F80+1 -> 2016 | H80: 2017 | I80: 2018 | J80: 2019 | K80: 2020 | L80: 2021 | M80: 2022 | N80: 2023 | O80: 2024 | P80: 2025 | Q80: 2026 | R80: 2027 | S80: 2028 | T80: 2029 | U80: 2030 | V80: 2031 | W80: 2032 | X80: 2033 | Y80: 2034 | Z80: 2035 | AA80: 2036
A81: General Revenue less Expense | D81: =+NPV(Discount_Rate,F81:AD81)*(1+Discount_Rate)^(0.5) -> 6.88001546e-13 | E81: =SUM(F81:AD81) -> 2840.166788 | F81: =F50-F76 -> -108 | G81: -1616 | H81: -972.4275533 | I81: -569.2859644 | J81: 329.8633098 | K81: 348.5662822 | L81: 359.9207599 | M81: 361.3512295 | N81: 363.4573263 | O81: 366.3660714 | P81: 368.8520932 | Q81: 368.4570079 | R81: 390.4561189 | S81: 380.0167835 | T81: 368.1216396 | U81: 354.2540342 | V81: 338.4059141 | W81: 321.3172772 | X81: 302.6482394 | Y81: 283.034056 | Z81: 261.8009472 | AA81: 238.9912158
A82: Tax Benefit (Expense) | D82: =+NPV(Discount_Rate,F82:AD82)*(1+Discount_Rate)^(0.5) -> 4.368809817e-13 | E82: =SUM(F82:AD82) -> 1077.871698 | F82: =F81*$H$10 -> -40.98708 | G82: =G81*$H$10 -> -613.28816 | H82: -369.0459807 | I82: -216.0497164 | J82: 125.1864247 | K82: 132.2843898 | L82: 136.5935276 | M82: 137.1364051 | N82: 137.9356899 | O82: 139.0395877 | P82: 139.9830579 | Q82: 139.8331191 | R82: 148.1820017 | S82: 144.2201695 | T82: 139.7058434 | U82: 134.4429485 | V82: 128.4284285 | W82: 121.9431199 | X82: 114.8580333 | Y82: 107.4142546 | Z82: 99.35607747 | AA82: 90.6995563
A86: Tracking Solar Facility On-Peak Energy Prices ($/MWH)
B87: Winter | D87: 41.88 | E87: =AVERAGE(F87:AA87) -> 54.70863636 | F87: 30.61 | G87: 27.58 | H87: 28.24 | I87: 30.84 | J87: 32.3 | K87: 35.07 | L87: 39.14 | M87: 39.69 | N87: 41.47 | O87: 43.23 | P87: 45.38 | Q87: 47.35 | R87: 67.34 | S87: 69.45 | T87: 71.9 | U87: 74.36 | V87: 75.94 | W87: 77.47 | X87: 79.08 | Y87: 80.69 | Z87: 82.33 | AA87: 84.13
B88: Summer | D88: 44.2 | E88: =AVERAGE(F88:AA88) -> 56.33 | F88: 30.15 | G88: 28.96 | H88: 31.14 | I88: 33.25 | J88: 35.3 | K88: 40.18 | L88: 41.91 | M88: 43.11 | N88: 44 | O88: 46.55 | P88: 49.68 | Q88: 52.34 | R88: 67.34 | S88: 69.45 | T88: 71.9 | U88: 74.36 | V88: 75.94 | W88: 77.47 | X88: 79.08 | Y88: 80.69 | Z88: 82.33 | AA88: 84.13
B89: Average | D89: =ROUND(AVERAGE(D87:D88),2) -> 43.04 | E89: =AVERAGE(F89:AA89) -> 55.52045455 | F89: =ROUND(AVERAGE(F87:F88),2) -> 30.38 | G89: 28.27 | H89: 29.69 | I89: 32.05 | J89: 33.8 | K89: 37.63 | L89: 40.53 | M89: 41.4 | N89: 42.74 | O89: 44.89 | P89: 47.53 | Q89: 49.85 | R89: 67.34 | S89: 69.45 | T89: 71.9 | U89: 74.36 | V89: 75.94 | W89: 77.47 | X89: 79.08 | Y89: 80.69 | Z89: 82.33 | AA89: 84.13
A90: Embedded Power Cost | D90: 55 | E90: =AVERAGE(F90:AA90) -> 68.70215766 | F90: =$D90*F$93 -> 55.99 | G90: 56.82985 | H90: 57.8527873 | I90: 58.95199026 | J90: 60.01312608 | K90: 61.15337548 | L90: 62.37644299 | M90: 63.62397185 | N90: 64.89645129 | O90: 66.25927676 | P90: 67.5844623 | Q90: 68.93615154 | R90: 70.31487457 | S90: 71.65085719 | T90: 73.01222348 | U90: 74.39945572 | V90: 75.81304538 | W90: 77.25349324 | X90: 78.79856311 | Y90: 80.29573581 | Z90: 81.90165053 | AA90: 83.53968354
E92: Inflation Forecast | F92: 0.018 | G92: 0.015 | H92: 0.018 | I92: 0.019 | J92: 0.018 | K92: 0.019 | L92: 0.02 | M92: 0.02 | N92: 0.02 | O92: 0.021 | P92: 0.02 | Q92: 0.02 | R92: 0.02 | S92: 0.019 | T92: 0.019 | U92: 0.019 | V92: 0.019 | W92: 0.019 | X92: 0.02 | Y92: 0.019 | Z92: 0.02 | AA92: 0.02 | AB92: 0.02
E93: Cumulative Inflation | F93: 1.018 | G93: 1.03327 | H93: 1.05186886 | I93: 1.071854368 | J93: 1.091147747 | K93: 1.111879554 | L93: 1.134117145 | M93: 1.156799488 | N93: 1.179935478 | O93: 1.204714123 | P93: 1.228808405 | Q93: 1.253384574 | R93: 1.278452265 | S93: 1.302742858 | T93: 1.327494972 | U93: 1.352717377 | V93: 1.378419007 | W93: 1.404608968 | X93: 1.432701147 | Y93: 1.459922469 | Z93: 1.489120919 | AA93: 1.518903337 | AB93: 1.549281404
